[Event "1000GM Schev-G5 April 2024"]
[Site "Santa Clara"]
[Date "2024.04.21"]
[Round "4.1"]
[White "Garduno Huerta, Joshua Emiliano"]
[Black "Wu, Wentao"]
[Result "1/2-1/2"]
[ECO "D70"]
[WhiteElo "1962"]
[BlackElo "1843"]
[Annotator "TA"]
[PlyCount "80"]
[EventDate "2024.03.06"]
[EventType "schev"]
[EventCountry "USA"]
[SourceTitle "playchess.com"]
[Source "ChessBase"]
[SourceQuality "1"]
[TimeControl "5400+30"]

{[%evp 12,80,13,27,47,18,77,80,86,75,59,76,75,25,25,33,73,19,37,29,55,18,13,10,16,26,31,34,48,27,27,15,36,36,53,54,56,49,53,50,47,28,28,1,3,6,29,29,29,29,35,35,42,42,42,42,45,43,44,0,0,0,0,0,0,0,0,0,0,0,0]} 1. d4 {[%emt 1:31:00]} Nf6 {[%emt 1:31:00]} 2. c4 {[%emt 0:00:30]} g6 {[%emt 0:00:30]} 3. f3 {[%emt 0:00:30]} d5 {[%emt 0:00:30]} 4. cxd5 {[%emt 0:00:30]} Nxd5 {[%emt 0:00:30]} 5. e4 {[%emt 0:00:30]} Nb6 {[%emt 0:00:30]} 6. Nc3 {[%emt 0:00:30]} Bg7 {[%emt 0:00:30]} 7. Be3 {[%emt 0:00:00]} c6 {[%emt 0:14:16]} 8. Qd2 {[%emt 0:00:00]} N8d7 {[%emt 0:03:41]} (8... e5 $11 9. dxe5 Qxd2+ 10. Kxd2 Bxe5) 9. O-O-O $16 {[%emt 0:00:00]} Nf6 {[%emt 0:01:49] White is better.} 10. Bh6 {[%emt 0:00:00]} Bxh6 {[%emt 0:03:11]} 11. Qxh6 {[%emt 0:00:00]} Be6 {[%emt 0:00:54]} 12. Nh3 {[%emt 0:00:00]} ({White should try} 12. Kb1 $16) 12... Bxh3 $11 {[%emt 0:01:10]} 13. Qxh3 {[%emt 0:00:00]} Qd7 {[%emt 0:00:29]} 14. Qxd7+ {[%emt 0:00:00]} (14. Qh4 $16) 14... Kxd7 {[%emt 0:04:00]} 15. Be2 {[%emt 0:00:00]} Rad8 {[%emt 0:03:27]} 16. Rd2 {[%emt 0:00:00]} e6 {[%emt 0:04:37]} 17. Rhd1 {[%emt 0:00:00]} Ke7 {[%emt 0:00:12]} 18. b4 {[%emt 0:00:00]} Rd7 {[%emt 0:04:00]} 19. a4 {[%emt 0:00:00][%cal Ba2a4,Ba4a5][%mdl 32]} Rc8 {[%emt 0:01:03]} 20. Kb2 {[%emt 0:07:00][%cal Bc1b2,Bb2c2,Bc2c3,Bc3c4,Bc4d4][%mdl 32]} Rcd8 {[%emt 0:09:14][%cal Oe6e5]} 21. Kc2 {[%emt 0:00:00]} a6 {[%emt 0:01:26]} 22. a5 {[%emt 0:00:00]} Nc8 {[%emt 0:02:26]} 23. Na4 {[%emt 0:00:00]} Na7 {[%emt 0:00:44]} 24. Nc5 {[%emt 0:00:00]} Rc7 {[%emt 0:00:17]} 25. Kc3 {[%emt 0:00:00]} Nd7 {[%emt 0:00:30]} 26. Kc4 {[%emt 0:00:00]} Nxc5 {[%emt 0:00:30]} 27. dxc5 {[%emt 0:00:00]} Rxd2 {[%emt 0:00:30]} 28. Rxd2 {[%emt 0:00:00]} Rd7 {[%emt 0:00:30]} 29. Rxd7+ {[%emt 0:00:00]} Kxd7 {[%emt 0:00:30][%mdl 4096] Endgame. KB-KN} 30. Kd4 {[%emt 0:00:00]} Nb5+ {[%emt 0:03:25]} 31. Bxb5 {[%emt 0:00:00]} axb5 $14 {[%emt 0:03:47] KP-KP} 32. Ke5 {[%emt 0:00:00] [#] Kf6 would now be deadly.} Ke7 {[%emt 0:50:04]} 33. Kf4 {Black must now prevent Kg5.} f6 {[%emt 0:00:00]} 34. e5 {[%emt 0:00:00]} h6 {[%emt 0:00:00]} 35. exf6+ {[%emt 0:09:30]} Kxf6 {[%emt 0:00:00] The position is equal.} 36. Ke4 {[%emt 0:01:21] [#] And now f4 would win.} e5 {[%emt 0:00:00]} 37. g3 {[%emt 0:03:30]} Ke6 {[%emt 0:00:00]} 38. h4 {[%emt 0:02:54]} Kf6 {[%emt 0:00:00]} 39. g4 {[%emt 0:00:01]} g5 {[%emt 0:00:00]} 40. hxg5+ {[%emt 0:00:20]} (40. h5 $5) 40... hxg5 {[%emt 0:00:00] Weighted Error Value: White=0.11 (very precise) /Black=0.10 (very precise) .  Mistake:       	White=2     	Black=1      Inaccurate:     	White=4     	Black=2      OK:         	White=10    	Black=12     Best:        	White=1     	---} 1/2-1/2

[Event "1000GM Schev-G5 April 2024"]
[Site "Santa Clara"]
[Date "2024.04.21"]
[Round "4.2"]
[White "Gonzalez Zharikov, Andrey"]
[Black "Yuan, Serena"]
[Result "1/2-1/2"]
[ECO "B33"]
[WhiteElo "2037"]
[BlackElo "1867"]
[Annotator "TA"]
[PlyCount "62"]
[EventDate "2024.03.06"]
[EventType "schev"]
[EventCountry "USA"]
[SourceTitle "playchess.com"]
[Source "ChessBase"]
[SourceQuality "1"]
[TimeControl "5400+30"]

{[%evp 26,62,0,0,8,-20,-10,-6,-8,-27,-39,-25,-39,-39,-35,-32,-27,-37,-37,-48,-35,-41,-39,-37,-28,-40,-29,-50,-32,-36,-15,-31,-12,-35,-12,-34,-34,-47,-36]} 1. e4 {[%emt 0:01:25]} c5 {[%emt 0:00:09]} 2. Nf3 {[%emt 0:00:06][%cal Bg1f3,Bf3d4,Bd4b5,Bb5a3,Ba3c2,Bc2b4][%mdl 32]} Nc6 {[%emt 0:00:07]} 3. d4 {[%emt 0:00:01]} cxd4 {[%emt 0:00:09]} 4. Nxd4 {[%emt 0:00:09]} Nf6 {[%emt 0:00:11]} 5. Nc3 {[%emt 0:00:07]} e5 {[%emt 0:00:09]} 6. Ndb5 {[%emt 0:00:07]} d6 {[%emt 0:00:10]} 7. Bg5 {[%emt 0:00:07]} a6 {[%emt 0:00:18]} 8. Na3 {[%emt 0:00:07]} b5 {[%emt 0:00:09]} 9. Nd5 {[%emt 0:00:06]} Be7 {[%emt 0:00:09]} 10. Bxf6 {[%emt 0:00:08]} Bxf6 {[%emt 0:00:07]} 11. c3 {[%emt 0:00:04]} O-O {[%emt 0:00:16]} 12. Nc2 {[%emt 0:00:10]} Bg5 {[%emt 0:00:09]} 13. Be2 {[%emt 0:01:33]} Ne7 {[%emt 0:00:49]} 14. Ncb4 {[%emt 0:08:40]} Be6 {[%emt 0:05:15]} 15. O-O {[%emt 0:08:32]} a5 {[%emt 0:04:19]} 16. Nxe7+ {[%emt 0:02:35]} Qxe7 {[%emt 0:01:17] The position is equal.} 17. Nd5 {[%emt 0:09:41]} Qb7 {[%emt 0:01:14]} 18. Qd3 {[%emt 0:09:43]} Bxd5 {[%emt 0:01:04]} 19. Qxd5 {[%emt 0:02:42]} Qxd5 {[%emt 0:00:47]} 20. exd5 {[%emt 0:00:01]} Rab8 {[%emt 0:00:59]} 21. Rad1 {[%emt 0:04:48]} f5 {[%emt 0:02:13]} 22. b3 {[%emt 0:01:02]} e4 {[%emt 0:06:25]} 23. c4 {[%emt 0:00:05] White is weak on the dark squares} bxc4 {[%emt 0:01:58]} 24. Bxc4 {[%emt 0:00:07]} Rfc8 {[%emt 0:02:32]} 25. Rfe1 {[%emt 0:03:16]} g6 {[%emt 0:04:55]} 26. Re2 {[%emt 0:01:06]} Kg7 {[%emt 0:03:07]} 27. g3 {[%emt 0:01:53]} Kf7 {[%emt 0:03:06]} 28. Kg2 {[%emt 0:00:13]} Rc7 {[%emt 0:02:03]} 29. Rde1 {[%emt 0:01:20]} Re7 {[%emt 0:07:17]} 30. h4 {[%emt 0:04:12]} Bf6 {[%emt 0:05:38]} 31. Rd1 {[%emt 0:01:19]} Bc3 {[%emt 0:05:00] Weighted Error Value: White=0.12 (very precise) /Black=0.09 (flawless) .  Inaccurate:     	White=1     	---        OK:         	White=1     	Black=6      Best:        	White=1     	---} 1/2-1/2

[Event "1000GM Schev-G5 April 2024"]
[Site "Santa Clara"]
[Date "2024.04.21"]
[Round "4.3"]
[White "Qi, Jenny"]
[Black "Solis Castro, Angel Alejan"]
[Result "1/2-1/2"]
[ECO "B16"]
[WhiteElo "1761"]
[BlackElo "2066"]
[Annotator "TA"]
[PlyCount "101"]
[EventDate "2024.03.06"]
[EventType "schev"]
[EventCountry "USA"]
[SourceTitle "playchess.com"]
[Source "ChessBase"]
[SourceQuality "1"]
[TimeControl "5400+30"]

{[%evp 14,101,76,63,79,0,-7,0,-7,0,0,0,0,0,0,-12,-11,-12,0,-62,0,-10,-5,-29,0,-15,-20,-14,-12,-20,-7,-14,-20,-24,0,-12,-6,-11,0,-24,0,-47,-45,-29,-56,-48,-7,-10,-14,-60,-49,-81,-76,-44,0,0,0,0,0,0,256,256,316,301,460,0,0,0,992,992,824,8,8,8,8,8,8,8,8,8,8,8,8,8,8,0,0,0,0,0]} 1. e4 {[%emt 0:00:03]} c6 {[%emt 0:01:35]} 2. d4 {[%emt 0:00:06]} d5 {[%emt 0:00:02]} 3. Nc3 {[%emt 0:00:08]} dxe4 {[%emt 0:00:21]} 4. Nxe4 {[%emt 0:00:12]} Nf6 {[%emt 0:00:09]} 5. Nxf6+ {[%emt 0:00:28]} gxf6 {[%emt 0:00:25]} 6. c3 {[%emt 0:01:24]} Bf5 {[%emt 0:00:09]} 7. Nf3 {[%emt 0:01:08]} e6 {[%emt 0:01:35]} 8. Bd3 {[%emt 0:03:45]} Bg6 {[%emt 0:00:15]} 9. Bxg6 {[%emt 0:02:27]} (9. O-O $16) 9... hxg6 $11 {[%emt 0:00:03]} 10. Qe2 {[%emt 0:02:51]} Qd5 {[%emt 0:00:39]} 11. Bd2 {[%emt 0:03:28]} Bh6 {[%emt 0:00:53]} 12. Bxh6 {[%emt 0:07:39]} Rxh6 {[%emt 0:00:03]} 13. c4 {[%emt 0:00:25]} Qa5+ {[%emt 0:01:05]} 14. Qd2 {[%emt 0:03:05]} Qxd2+ {[%emt 0:00:48]} 15. Kxd2 {[%emt 0:02:22]} Nd7 {[%emt 0:00:52]} 16. Rhe1 {[%emt 0:08:19]} ({Better is} 16. Ke3 $11) 16... c5 {[%emt 0:06:03]} (16... g5 $15 17. h3 c5) 17. dxc5 {[%emt 0:06:12]} Nxc5 {[%emt 0:00:17]} 18. Rad1 {[%emt 0:03:30]} O-O-O+ {[%emt 0:06:33]} 19. Kc2 {[%emt 0:01:57]} Rxd1 {[%emt 0:05:16]} 20. Rxd1 {[%emt 0:02:34][%mdl 4096] Endgame. KRN-KRN} Ne4 {[%emt 0:00:15]} 21. Rf1 {[%emt 0:01:31]} e5 22. h3 {[%emt 0:01:33]} Kd7 {[%emt 0:14:00]} 23. Nd2 {[%emt 0:01:04]} Nxd2 {[%emt 0:03:48]} 24. Kxd2 {[%emt 0:00:04] KR-KR} Rh4 {[%emt 0:00:10]} 25. Kc3 {[%emt 0:03:57]} Rd4 {[%emt 0:00:38]} 26. f3 {[%emt 0:01:20]} Ke6 {[%emt 0:01:03]} 27. Rf2 {[%emt 0:03:56]} (27. a4 $11) 27... Rd1 $15 {[%emt 0:02:07]} 28. Rd2 {[%emt 0:00:52]} Rc1+ {[%emt 0:00:11]} 29. Rc2 {[%emt 0:00:17]} Rg1 {[%emt 0:00:19]} 30. b4 {[%emt 0:02:06]} f5 {[%emt 0:03:22]} 31. Rd2 {[%emt 0:01:22]} (31. c5 $11) 31... e4 {[%emt 0:02:11]} 32. fxe4 {[%emt 0:08:52]} fxe4 {[%emt 0:00:04]} 33. c5 {[%emt 0:01:04][%cal Bc4c5,Bc5c6][%mdl 32]} Ke5 {[%emt 0:09:39]} 34. Rd7 {[%emt 0:03:35][%csl LRb7,LRf7]} f5 {[%emt 0:03:56]} 35. Rxb7 {[%emt 0:01:27]} f4 {[%emt 0:05:50]} 36. Rxa7 {[%emt 0:02:40] Hoping for Re7+.} Rxg2 $2 {[%emt 0:03:48][%mdl 8192]} (36... e3 $11 37. Re7+ Kd5 38. Rd7+ Ke6) 37. c6 $18 {[%emt 0:06:42]} Rg3+ {[%emt 0:01:22]} 38. Kc4 {[%emt 0:03:55] Black must now prevent c7.} Rxh3 {[%emt 0:02:31] [#]} (38... Kd6 $142 39. b5 Rg2) 39. Re7+ $2 {[%emt 0:00:54]} (39. b5 $1 $18 {[%cal Rb5b6]}) 39... Kd6 $1 $11 {[%emt 0:01:48]} 40. Rxe4 {[%emt 0:02:02]} Kxc6 $2 {[%emt 0:00:10][%mdl 8192]} (40... f3 $11 41. b5 f2 42. Rd4+ Kc7 43. Rd7+ Kb6 44. Rb7+ Ka5 45. Ra7+ (45. Rf7 Rh4+ 46. Kd3 Kxb5 $11) 45... Kb6 46. Rb7+ Ka5 47. Ra7+ (47. Rf7 Rh4+ 48. Kd5 Rh5+ 49. Ke6 Rf5 $11) 47... Kb6 48. Rb7+) 41. Rxf4 $18 {[%emt 0:02:31]} Ra3 {[%emt 0:00:20] [#]} 42. Rf6+ $2 {[%emt 0:00:21]} (42. b5+ $1 $18 Kb6 43. Rf6+ Kb7 44. Rf2 (44. Rxg6 Rxa2 45. b6 Rh2 $11) 44... Ra4+ 45. Kb3) 42... Kc7 {[%emt 0:26:55] The position is equal.} 43. Rxg6 {[%emt 0:00:35] Threatens to win with Kc5.} Rxa2 {[%emt 0:00:00]} 44. Kb5 {[%emt 0:00:11] aiming for Rg7+.} Rf2 {[%emt 0:00:00]} 45. Rg7+ {[%emt 0:00:14]} Kb8 {[%emt 0:00:00]} 46. Kb6 {[%emt 0:00:20] White wants to mate with Rg8+.} Rf6+ {[%emt 0:00:00]} 47. Ka5 {[%emt 0:00:06]} Rf5+ {[%emt 0:00:00]} 48. b5 {[%emt 0:00:05]} Rf6 $1 {[%emt 0:00:00]} 49. b6 {[%emt 0:01:18]} Rf1 {[%emt 0:00:00]} 50. Ka6 {[%emt 0:01:05] Threatening mate with Rg8+.} Ra1+ {[%emt 0:00:00]} 51. Kb5 {[%emt 0:00:57] Weighted Error Value: White=0.41/Black=0.28 (precise) .  Loses game:     	---       	Black=2      Missed win:     	White=1     	---        Mistake:       	White=4     	Black=2      Inaccurate:     	White=1     	Black=3      OK:         	White=10    	Black=15     Best:        	White=3     	Black=5      Strong:       	---       	Black=2} 1/2-1/2

[Event "1000GM Schev-G5 April 2024"]
[Site "Santa Clara"]
[Date "2024.04.21"]
[Round "4.4"]
[White "Wu, Jayden"]
[Black "Rodriguez Hernandez, Jose Angel"]
[Result "1-0"]
[ECO "C97"]
[WhiteElo "1932"]
[BlackElo "1992"]
[Annotator "TA"]
[PlyCount "71"]
[EventDate "2024.03.06"]
[EventType "schev"]
[EventCountry "USA"]
[SourceTitle "playchess.com"]
[Source "ChessBase"]
[SourceQuality "1"]
[TimeControl "5400+30"]

{[%evp 26,71,10,-10,15,0,35,17,27,26,14,39,43,0,65,72,84,62,55,62,48,53,79,71,67,47,160,156,471,474,1602,1077,1600,750,723,722,717,723,722,719,715,633,611,548,542,541,527,531]} 1. e4 {[%emt 0:00:05]} e5 {[%emt 0:02:37]} 2. Nf3 {[%emt 0:00:09]} Nc6 {[%emt 0:00:36]} 3. Bb5 {[%emt 0:00:10][%cal Bf1b5,Bb5a4,Ba4b3][%mdl 32]} a6 {[%emt 0:00:11]} 4. Ba4 {[%emt 0:00:07]} Nf6 {[%emt 0:00:35]} 5. O-O {[%emt 0:00:09]} b5 {[%emt 0:00:16]} 6. Bb3 {[%emt 0:00:09]} Be7 {[%emt 0:00:05]} 7. Re1 {[%emt 0:00:12]} O-O {[%emt 0:00:18]} 8. h3 {[%emt 0:00:12]} d6 {[%emt 0:00:06]} 9. c3 {[%emt 0:00:27]} Na5 {[%emt 0:03:58]} 10. Bc2 {[%emt 0:00:09]} c5 {[%emt 0:00:04]} 11. d4 {[%emt 0:00:05]} Qc7 {[%emt 0:00:04]} 12. d5 {[%emt 0:02:59]} Nb7 {[%emt 0:01:59]} 13. Nbd2 {[%emt 0:19:28]} c4 {[%emt 0:00:40]} 14. Nf1 {[%emt 0:01:13]} Re8 {[%emt 0:05:13]} 15. Ng3 {[%emt 0:01:04]} g6 {[%emt 0:00:32]} 16. Nh2 {[%emt 0:05:16]} Nc5 {[%emt 0:01:39] The position is equal.} 17. f4 {[%emt 0:01:02]} exf4 {[%emt 0:02:06]} 18. Bxf4 {[%emt 0:00:15]} Bf8 {[%emt 0:00:18]} 19. Nf3 {[%emt 0:02:03]} (19. Qd2 $5) 19... Ncd7 {[%emt 0:00:37]} (19... a5 $11) 20. Qd2 $14 {[%emt 0:02:31]} Bg7 {[%emt 0:02:31]} 21. a4 {[%emt 0:17:26] Active counter play!} Bb7 {[%emt 0:03:01]} 22. Be3 {[%emt 0:46:19]} Nc5 {[%emt 0:07:59]} 23. Bd4 {[%emt 0:00:00]} Nfd7 {[%emt 0:00:38]} 24. Bxg7 {[%emt 0:00:00]} Kxg7 {[%emt 0:00:06]} 25. Qg5 {[%emt 0:00:00]} f6 {[%emt 0:01:53]} ({Black should try} 25... Kg8 $14) 26. Nh5+ $16 {[%emt 0:00:00]} Kf7 $2 {[%emt 0:08:56] Loses the game.} (26... Kg8 $16 {is a better chance.} 27. Nxf6+ Nxf6) 27. Qh6 $18 {[%emt 0:00:00][%csl Gh5][%cal Rh6g7] [#] White is clearly winning.} gxh5 {[%emt 0:00:06]} (27... Ke7 $142 28. Qxh7+ Kd8 29. Qxg6 Qc8 30. axb5 (30. Nxf6 Nxf6 31. Qxf6+ Kc7 $18) 30... Kc7 31. bxa6 (31. Nxf6 Nxf6 32. Qxf6 Qd7 $18) 31... Bxa6 32. Nxf6 Nxf6 33. Qxf6 Qd8) 28. Qxh7+ {[%emt 0:00:00]} Kf8 {[%emt 0:00:10][%cal Bf7f8,Bf8e8,Be8d7,Bd7c8,Bc8c7][%mdl 32]} 29. Nh4 {[%emt 0:00:00]} ({Stronger than} 29. Qxh5 Ne5 $11) (29. Ng5 $142 Ne5 30. Qxc7 fxg5 31. Qxd6+ Kg8 32. Qxc5) 29... Re5 {[%emt 0:01:48]} 30. Ng6+ {[%emt 0:00:00]} Ke8 {[%emt 0:00:05]} 31. Qg8+ {[%emt 0:00:00]} Nf8 {[%emt 0:00:08]} 32. Qxf8+ {[%emt 0:00:00]} Kd7 {[%emt 0:00:06]} 33. Qf7+ {[%emt 0:00:00]} Kc8 {[%emt 0:00:42]} 34. Qxc7+ {[%emt 0:00:00]} Kxc7 {[%emt 0:00:06]} 35. Nxe5 {[%emt 0:00:00]} fxe5 {[%emt 0:00:08]} 36. axb5 {[%emt 0:00:00] Weighted Error Value: White=0.29 (precise) /Black=0.64.  Loses game:     	---       	Black=1      Mistake:       	---       	Black=3      Inaccurate:     	White=1     	Black=3      OK:         	White=5     	Black=1      Best:        	White=3     	---} 1-0

[Event "1000GM Schev-G5 April 2024"]
[Site "Santa Clara"]
[Date "2024.04.21"]
[Round "4.5"]
[White "Castro, Azalea"]
[Black "Pulijala, Akshaj"]
[Result "0-1"]
[ECO "B33"]
[WhiteElo "1975"]
[BlackElo "1833"]
[Annotator "TA"]
[PlyCount "86"]
[EventDate "2024.03.06"]
[EventType "schev"]
[EventCountry "USA"]
[SourceTitle "playchess.com"]
[Source "ChessBase"]
[SourceQuality "1"]
[TimeControl "5400+30"]

{[%evp 20,86,34,0,7,-28,-16,-25,-22,-29,-29,-21,-21,-10,0,10,38,32,35,38,35,40,42,37,39,37,45,49,33,46,33,12,18,24,21,19,22,26,21,21,21,-20,-19,-80,-25,-520,-504,-501,-516,-472,-502,-500,-486,-763,-758,-862,-718,-711,-433,-1222,-739,-1447,-1407,-4814,-2041,-29984,-29985,-29980,-29981]} 1. e4 {[%emt 0:00:11]} c5 {[%emt 0:00:06]} 2. Nf3 {[%emt 0:00:20]} Nc6 {[%emt 0:00:13]} 3. d4 {[%emt 0:00:26]} cxd4 {[%emt 0:00:06]} 4. Nxd4 {[%emt 0:00:08]} Nf6 {[%emt 0:00:05]} 5. Nc3 {[%emt 0:00:33]} e5 {[%emt 0:00:14]} 6. Ndb5 {[%emt 0:00:34]} d6 {[%emt 0:00:08]} 7. Bg5 {[%emt 0:00:52]} a6 {[%emt 0:00:11]} 8. Na3 {[%emt 0:00:08]} b5 {[%emt 0:00:04]} 9. Nd5 {[%emt 0:00:15]} Be7 {[%emt 0:00:06]} 10. Bxf6 {[%emt 0:00:35]} Bxf6 {[%emt 0:00:07]} 11. Be2 {[%emt 0:03:46]} O-O {[%emt 0:02:07]} 12. Nxf6+ {[%emt 0:02:06]} Qxf6 {[%emt 0:00:57]} 13. c3 {[%emt 0:03:57]} Bb7 {[%emt 0:02:19] Black has an edge.} 14. Bf3 {[%emt 0:01:54]} Ne7 {[%emt 0:03:20]} 15. O-O {[%emt 0:02:13]} Rfd8 {[%emt 0:02:35]} 16. Qe2 {[%emt 0:04:21]} Ng6 {[%emt 0:07:01]} 17. g3 {[%emt 0:06:33] Repels Nf4} Qg5 {[%emt 0:04:17]} 18. Bg2 {[%emt 0:00:50]} f5 {[%emt 0:12:21]} 19. h4 {[%emt 0:09:40]} Qf6 {[%emt 0:01:15]} 20. exf5 Bxg2 {[%emt 0:00:18]} 21. Kxg2 {[%emt 0:11:41]} Qxf5 {[%emt 0:00:06]} 22. Nc2 {[%emt 0:06:34]} Rac8 {[%emt 0:05:10]} 23. Ne3 {[%emt 0:01:25]} Qe6 {[%emt 0:01:17]} 24. h5 {[%emt 0:03:03]} Ne7 {[%emt 0:04:57]} 25. Qg4 {[%emt 0:01:32]} Qf6 {[%emt 0:02:58]} (25... Qxg4 {simplifies} 26. Nxg4 a5 27. f4 exf4 28. Rxf4 Rf8) 26. a4 {[%emt 0:06:23]} d5 {[%emt 0:03:22]} 27. axb5 {[%emt 0:00:34]} axb5 {[%emt 0:00:50]} 28. Ra7 {[%emt 0:08:17]} d4 {[%emt 0:07:10]} 29. cxd4 {[%emt 0:03:05]} exd4 {[%emt 0:01:42]} 30. Nd1 {[%emt 0:02:46]} Nf5 {[%emt 0:04:48]} 31. Qe4 {[%emt 0:06:57] Prevents Qe5.} (31. Re1 $1 $11 {remains equal.}) 31... Kh8 {[%emt 0:08:42]} (31... Qg5 $17 {[%cal Oh7h6]} 32. h6 Nxh6) 32. Rb7 $2 {[%emt 0:05:52][%mdl 8192] [#] Now White is beyond hope.} (32. g4 $11 {and White is okay.} Nh6 33. f3) 32... Nd6 $19 {[%emt 0:01:12][%csl LRb7,LRe4]} 33. Qd5 {[%emt 0:01:18]} Nxb7 {[%emt 0:01:03]} 34. Qxb7 {[%emt 0:00:04]} Qc6+ {[%emt 0:00:17]} 35. Qxc6 {[%emt 0:00:06]} Rxc6 {[%emt 0:00:02][%mdl 4096] Endgame. KRR-KRN} 36. Kf3 {[%emt 0:01:03]} (36. Re1 $142) 36... Re8 {[%emt 0:00:38]} 37. Kf4 {[%emt 0:01:19]} Rf6+ {[%emt 0:00:58]} 38. Kg4 {[%emt 0:00:21]} Rfe6 {[%emt 0:01:32] [#] ...Re1 would now be deadly.} 39. f4 {[%emt 0:02:19]} (39. b4 $142) 39... d3 {[%emt 0:01:49] Threatens to win with ...Re1.} 40. Rf3 {[%emt 0:01:34]} Rd8 {[%emt 0:00:53]} 41. Kf5 {[%emt 0:01:17]} Re1 {[%emt 0:00:43][%cal Od3d2] ( -> ...d2!)} 42. Nf2 {[%emt 0:00:54]} d2 {[%emt 0:00:51]} 43. Rb3 {[%emt 0:00:48]} Rf1 {[%emt 0:00:40] Weighted Error Value: White=0.92/Black=0.33.  Loses game:     	White=1     	---        Mistake:       	White=2     	Black=1      Inaccurate:     	White=3     	Black=1      OK:         	White=12    	Black=12     Best:        	White=2     	Black=2} 0-1

[Event "1000GM Schev-G5 April 2024"]
[Site "Santa Clara"]
[Date "2024.04.22"]
[Round "5.1"]
[White "Wu, Wentao"]
[Black "Gonzalez Zharikov, Andrey"]
[Result "1/2-1/2"]
[ECO "B12"]
[WhiteElo "1843"]
[BlackElo "2037"]
[Annotator "TA"]
[PlyCount "93"]
[EventDate "2024.03.06"]
[EventType "schev"]
[EventCountry "USA"]
[SourceTitle "playchess.com"]
[Source "ChessBase"]
[SourceQuality "1"]
[TimeControl "5400+30"]

{[%evp 9,93,28,47,31,42,43,39,38,41,29,35,36,47,44,49,39,47,36,38,16,49,52,49,56,41,36,68,35,56,35,27,-27,-11,-30,0,-16,4,14,88,96,108,123,111,98,125,123,141,118,114,80,114,116,111,61,68,20,28,20,21,19,21,0,12,-8,0,-38,21,30,72,72,72,72,72,22,72,22,72,72,72,72,72,72,72,72,72,72]} 1. e4 {[%emt 0:03:18]} c6 {[%emt 0:00:09]} 2. d4 {[%emt 0:00:09]} d5 {[%emt 0:00:24]} 3. e5 {[%emt 0:00:05]} Bf5 {[%emt 0:00:04]} 4. Nf3 {[%emt 0:00:05]} e6 {[%emt 0:00:09]} 5. Be2 {[%emt 0:00:02]} a5 {[%emt 0:00:05]} 6. a4 {[%emt 0:00:24]} Nd7 {[%emt 0:03:21]} 7. O-O {[%emt 0:00:17]} h6 {[%emt 0:03:08]} 8. Nbd2 {[%emt 0:00:25] White is slightly better.} Ne7 {[%emt 0:02:29]} 9. Nb3 {[%emt 0:00:25]} Bh7 {[%emt 0:13:08]} 10. Bd2 {[%emt 0:00:17]} Nf5 {[%emt 0:02:59]} 11. Qe1 {[%emt 0:11:43]} b6 {[%emt 0:15:35]} 12. Rc1 {[%emt 0:00:48]} Be7 {[%emt 0:02:11]} 13. c4 {[%emt 0:02:16]} dxc4 {[%emt 0:01:15]} 14. Rxc4 {[%emt 0:00:38]} Nb8 {[%emt 0:52:33]} 15. g4 {[%emt 0:07:28]} Nh4 {[%emt 0:00:00]} 16. Nxh4 {[%emt 0:00:11]} Bxh4 {[%emt 0:00:00]} 17. Rc3 {[%emt 0:02:49]} Ra7 {[%emt 0:00:00]} 18. Bf3 {[%emt 0:01:06][%cal Oe1e2]} Be7 {[%emt 0:00:00]} 19. Qe2 {[%emt 0:02:49]} (19. Bxc6+ Nxc6 20. Rxc6 Bd3 $17) 19... O-O {[%emt 0:00:00][%cal Be8g8,Bg8g7,Bg7h8][%mdl 32]} 20. Kh1 {[%emt 0:04:21]} (20. Bg2 $142) 20... Bb4 {[%emt 0:00:00]} 21. Rc4 {[%emt 0:01:38]} Be7 {[%emt 0:00:00]} 22. Rc3 {[%emt 0:00:42]} Qd7 {[%emt 0:00:00]} 23. Rg1 {[%emt 0:00:35]} g5 {[%emt 0:00:00] [#]} (23... Bb4 $11 {keeps the balance.}) 24. h4 $1 $16 {[%emt 0:03:11]} Kg7 {[%emt 0:00:00]} (24... Qd8 25. Be4) 25. hxg5 {[%emt 0:00:17]} hxg5 {[%emt 0:00:00]} 26. Kg2 {[%emt 0:00:29]} Bg6 {[%emt 0:00:00]} 27. Rh1 {[%emt 0:00:13]} Rh8 {[%emt 0:00:00]} 28. Rxh8 {[%emt 0:57:49]} Kxh8 {[%emt 0:00:00]} 29. Be4 Kg7 {[%emt 0:07:30]} 30. Bxg6 {[%emt 0:00:00]} fxg6 {[%emt 0:00:00]} 31. Qe4 (31. Qf3 $16) 31... Rc7 $14 {[%emt 0:00:00]} 32. Rh3 {White has more active pieces.} (32. Be3 $14) 32... Qd5 $11 {[%emt 0:01:30]} 33. Qxd5 {[%emt 0:00:00]} (33. Qf3 {is interesting.} Rc8 34. Rh1 Na6 35. Rc1) 33... exd5 {[%emt 0:00:00]} 34. Nc1 c5 {[%emt 0:01:00]} 35. dxc5 {[%emt 0:00:00]} Rxc5 {[%emt 0:00:00]} 36. Rc3 Nc6 {[%emt 0:00:00]} 37. Rxc5 {[%emt 0:00:00]} Bxc5 {[%emt 0:00:00][%mdl 4096] Endgame. KBN-KBN} (37... bxc5 $15 38. Nb3 Kf7 39. Nxa5 (39. Bxa5 $2 {too greedy.} c4 $19) 39... Nxe5) 38. Nd3 Bd4 {[%emt 0:02:00]} 39. Bxg5 {[%emt 0:05:30] Black must now prevent Bf6+.} Nxe5 {[%emt 0:00:30]} 40. Nxe5 {[%emt 0:00:00]} Bxe5 $16 {[%emt 0:00:00] KB-KB} 41. Bd8 (41. b3 $16) 41... Bd4 {[%emt 0:01:00]} (41... Bxb2 $11 42. Bxb6 Bc3) 42. Kf3 {[%emt 0:00:00]} ({Better is} 42. b3 $16) 42... Kf7 {[%emt 0:00:30]} (42... Bxb2 $11 43. Bxb6 Bc3) 43. b3 {[%emt 0:00:00] White is better.} Ke6 {[%emt 0:00:30]} 44. Ke2 {[%emt 0:00:00]} Kd7 {[%emt 0:00:00]} 45. Bg5 {[%emt 0:00:00]} Ke6 {[%emt 0:01:00]} 46. f4 {[%emt 0:00:00]} Bc5 {[%emt 0:00:00]} 47. Kd3 {[%emt 0:00:00] Weighted Error Value: White=0.14 (very precise) /Black=0.19 (very precise) .  Mistake:       	White=5     	Black=4      Inaccurate:     	White=2     	Black=5      OK:         	White=17    	Black=10     Best:        	White=2     	Black=2} 1/2-1/2